[Event "Titled Tuesday Blitz June 14 Early 2022"]
[White "Ronka, Erik"]
[Black "Bortnyk, Mykola"]
[WhiteFideId "505080"]
[BlackFideId "14120836"]
[WhiteElo "2264"]
[BlackElo "2582"]
[Result "0-1"]
[Round "01"]
[TimeControl "180+1"]
[Date "2022.06.14"]
[WhiteClock "0:00:10"]
[BlackClock "0:01:35"]

1. e4 {[%clk 0:02:59]}  Nf6 {[%clk 0:02:58]} 2. e5 {[%clk 0:02:55]}  Nd5 {[%clk 0:02:58]} 3. c4 {[%clk 0:02:56]}  Nb6 {[%clk 0:02:58]} 4. d4 {[%clk 0:02:57]}  d6 {[%clk 0:02:58]} 5. f4 {[%clk 0:02:57]}  dxe5 {[%clk 0:02:59]} 6. fxe5 {[%clk 0:02:58]}  Nc6 {[%clk 0:02:59]} 7. Be3 {[%clk 0:02:59]}  Bf5 {[%clk 0:02:59]} 8. Nc3 {[%clk 0:02:59]}  e6 {[%clk 0:02:59]} 9. Nf3 {[%clk 0:02:59]}  Qd7 {[%clk 0:03:00]} 10. Be2 {[%clk 0:02:49]}  O-O-O {[%clk 0:02:59]} 11. O-O {[%clk 0:02:50]}  Kb8 {[%clk 0:02:55]} 12. c5 {[%clk 0:02:29]}  Nd5 {[%clk 0:02:53]} 13. Nxd5 {[%clk 0:02:29]}  Qxd5 {[%clk 0:02:54]} 14. Qe1 {[%clk 0:01:51]}  f6 {[%clk 0:02:49]} 15. exf6 {[%clk 0:01:44]}  gxf6 {[%clk 0:02:48]} 16. b4 {[%clk 0:01:23]}  Rg8 {[%clk 0:02:27]} 17. b5 {[%clk 0:01:19]}  Qe4 {[%clk 0:02:16]} 18. Qf2 {[%clk 0:01:16]}  Bh3 {[%clk 0:02:09]} 19. g3 {[%clk 0:00:59]}  Bxf1 {[%clk 0:02:06]} 20. Bxf1 {[%clk 0:00:58]}  Nb4 {[%clk 0:02:01]} 21. Nd2 {[%clk 0:00:26]}  Qg6 {[%clk 0:01:47]} 22. Rc1 {[%clk 0:00:11]}  Nd5 {[%clk 0:01:43]} 23. Nc4 {[%clk 0:00:09]}  Nxe3 {[%clk 0:01:36]} 24. Qxe3 {[%clk 0:00:10]}  Bh6 {[%clk 0:01:35]} 0-1


[Site "https://www.chess.com"]

[Event "Titled Tuesday Blitz June 14 Early 2022"]
[White "Shubin, Kirill"]
[Black "Sadykov, Ramil"]
[WhiteFideId "34119962"]
[BlackFideId "24113590"]
[WhiteElo "2474"]
[BlackElo "2226"]
[Result "1-0"]
[Round "01"]
[TimeControl "180+1"]
[Date "2022.06.14"]
[WhiteClock "0:01:54"]
[BlackClock "0:00:02"]

1. e4 {[%clk 0:03:00]}  c5 {[%clk 0:02:58]} 2. Nf3 {[%clk 0:03:01]}  Nc6 {[%clk 0:02:58]} 3. Bb5 {[%clk 0:03:00]}  g6 {[%clk 0:02:57]} 4. Bxc6 {[%clk 0:03:01]}  dxc6 {[%clk 0:02:58]} 5. d3 {[%clk 0:03:01]}  Bg7 {[%clk 0:02:58]} 6. h3 {[%clk 0:03:02]}  Nh6 {[%clk 0:02:58]} 7. a4 {[%clk 0:03:01]}  a5 {[%clk 0:02:55]} 8. O-O {[%clk 0:02:59]}  f6 {[%clk 0:02:54]} 9. Be3 {[%clk 0:02:56]}  b6 {[%clk 0:02:52]} 10. Nbd2 {[%clk 0:02:54]}  e5 {[%clk 0:02:49]} 11. Nc4 {[%clk 0:02:54]}  O-O {[%clk 0:02:48]} 12. c3 {[%clk 0:02:51]}  Nf7 {[%clk 0:02:46]} 13. Qb3 {[%clk 0:02:45]}  Ra6 {[%clk 0:02:16]} 14. Rfd1 {[%clk 0:02:42]}  Be6 {[%clk 0:01:44]} 15. d4 {[%clk 0:02:42]}  cxd4 {[%clk 0:01:00]} 16. cxd4 {[%clk 0:02:42]}  exd4 {[%clk 0:01:00]} 17. Nxd4 {[%clk 0:02:41]}  Qe8 {[%clk 0:01:01]} 18. Qc2 {[%clk 0:02:33]}  c5 {[%clk 0:00:52]} 19. Nb5 {[%clk 0:02:28]}  Qe7 {[%clk 0:00:51]} 20. Bf4 {[%clk 0:02:25]}  Rc8 {[%clk 0:00:47]} 21. Rd2 {[%clk 0:02:20]}  f5 {[%clk 0:00:26]} 22. Re1 {[%clk 0:02:15]}  Qf6 {[%clk 0:00:09]} 23. Nc7 {[%clk 0:02:03]}  Ra7 {[%clk 0:00:05]} 24. Nxe6 {[%clk 0:01:56]}  Qxe6 {[%clk 0:00:06]} 25. Rde2 {[%clk 0:01:56]}  fxe4 {[%clk 0:00:04]} 26. Rxe4 {[%clk 0:01:56]}  Qc6 {[%clk 0:00:05]} 27. Re6 {[%clk 0:01:55]}  Qa8 {[%clk 0:00:02]} 28. Nxb6 {[%clk 0:01:54]} 1-0


[Site "https://www.chess.com"]

[Event "Titled Tuesday Blitz June 14 Early 2022"]
[White "Suleymanli, Suleyman"]
[Black "Martinez Alcantara, Jose Eduardo"]
[WhiteFideId "13416375"]
[BlackFideId "3805662"]
[WhiteElo "1598"]
[BlackElo "2703"]
[Result "0-1"]
[Round "01"]
[TimeControl "180+1"]
[Date "2022.06.14"]
[WhiteClock "0:00:40"]
[BlackClock "0:02:02"]

1. Nf3 {[%clk 0:03:00]}  c5 {[%clk 0:02:58]} 2. g3 {[%clk 0:03:00]}  Nc6 {[%clk 0:02:58]} 3. d4 {[%clk 0:03:00]}  cxd4 {[%clk 0:02:58]} 4. Nxd4 {[%clk 0:03:00]}  g6 {[%clk 0:02:58]} 5. Bg2 {[%clk 0:03:00]}  Bg7 {[%clk 0:02:59]} 6. Nxc6 {[%clk 0:03:01]}  bxc6 {[%clk 0:03:00]} 7. c4 {[%clk 0:03:01]}  Nf6 {[%clk 0:02:59]} 8. Nd2 {[%clk 0:03:01]}  O-O {[%clk 0:02:59]} 9. O-O {[%clk 0:03:01]}  d5 {[%clk 0:02:59]} 10. Nb3 {[%clk 0:02:53]}  a5 {[%clk 0:02:44]} 11. cxd5 {[%clk 0:02:53]}  cxd5 {[%clk 0:02:44]} 12. Be3 {[%clk 0:02:51]}  e5 {[%clk 0:02:41]} 13. Bg5 {[%clk 0:02:47]}  Rb8 {[%clk 0:02:22]} 14. Bxf6 {[%clk 0:02:43]}  Bxf6 {[%clk 0:02:23]} 15. Qxd5 {[%clk 0:02:43]}  a4 {[%clk 0:02:07]} 16. Nc5 {[%clk 0:02:40]}  Qxd5 {[%clk 0:02:07]} 17. Bxd5 {[%clk 0:02:39]}  Rb5 {[%clk 0:02:08]} 18. Rac1 {[%clk 0:02:20]}  Be7 {[%clk 0:02:08]} 19. Nxa4 {[%clk 0:01:01]}  Rxd5 {[%clk 0:02:06]} 20. Nb6 {[%clk 0:01:01]}  Rdd8 {[%clk 0:02:06]} 21. Rc7 {[%clk 0:00:57]}  Bd6 {[%clk 0:02:07]} 22. Rc6 {[%clk 0:00:53]}  Bb7 {[%clk 0:02:07]} 23. Rc2 {[%clk 0:00:41]}  Bb8 {[%clk 0:02:05]} 24. Nc4 {[%clk 0:00:40]}  Rc8 {[%clk 0:02:03]} 25. b3 {[%clk 0:00:40]}  Rfe8 {[%clk 0:02:03]} 26. Rfc1 {[%clk 0:00:40]}  Red8 {[%clk 0:02:02]} 27. Nb6 {[%clk 0:00:39]}  Rxc2 {[%clk 0:02:02]} 28. Rxc2 {[%clk 0:00:40]}  Rd1# {[%clk 0:02:02]} 0-1


[Site "https://www.chess.com"]

[Event "Titled Tuesday Blitz June 14 Early 2022"]
[White "Svane, Rasmus"]
[Black "Obrien, Matthew"]
[WhiteFideId "4657101"]
[BlackFideId "2059150"]
[WhiteElo "2674"]
[BlackElo "2534"]
[Result "1-0"]
[Round "01"]
[TimeControl "180+1"]
[Date "2022.06.14"]
[WhiteClock "0:00:16"]
[BlackClock "0:00:04"]

1. Nf3 {[%clk 0:03:00]}  d5 {[%clk 0:02:57]} 2. g3 {[%clk 0:03:00]}  Nf6 {[%clk 0:02:55]} 3. Bg2 {[%clk 0:03:00]}  g6 {[%clk 0:02:52]} 4. c4 {[%clk 0:02:56]}  d4 {[%clk 0:02:51]} 5. b4 {[%clk 0:02:55]}  Bg7 {[%clk 0:02:46]} 6. Bb2 {[%clk 0:02:51]}  Ne4 {[%clk 0:02:39]} 7. Qc2 {[%clk 0:02:33]}  d3 {[%clk 0:02:02]} 8. exd3 {[%clk 0:02:19]}  Bxb2 {[%clk 0:01:57]} 9. Qxb2 {[%clk 0:02:20]}  Nf6 {[%clk 0:01:54]} 10. d4 {[%clk 0:02:17]}  O-O {[%clk 0:01:49]} 11. O-O {[%clk 0:02:17]}  Bf5 {[%clk 0:01:32]} 12. Re1 {[%clk 0:02:10]}  Nbd7 {[%clk 0:01:03]} 13. Nc3 {[%clk 0:02:03]}  Nb6 {[%clk 0:00:58]} 14. Qb3 {[%clk 0:01:48]}  a5 {[%clk 0:00:50]} 15. bxa5 {[%clk 0:01:35]}  Rxa5 {[%clk 0:00:50]} 16. c5 {[%clk 0:01:35]}  Nbd5 {[%clk 0:00:39]} 17. Qxb7 {[%clk 0:01:34]}  Ra8 {[%clk 0:00:17]} 18. Ne5 {[%clk 0:01:24]}  Rb8 {[%clk 0:00:16]} 19. Qa6 {[%clk 0:01:16]}  Nb4 {[%clk 0:00:15]} 20. Qa4 {[%clk 0:01:06]}  Qxd4 {[%clk 0:00:11]} 21. a3 {[%clk 0:00:49]}  Nc2 {[%clk 0:00:08]} 22. Qxd4 {[%clk 0:00:48]}  Nxd4 {[%clk 0:00:08]} 23. Nc6 {[%clk 0:00:47]}  Nxc6 {[%clk 0:00:08]} 24. Bxc6 {[%clk 0:00:48]}  Rb2 {[%clk 0:00:07]} 25. Rxe7 {[%clk 0:00:46]}  Rxd2 {[%clk 0:00:05]} 26. Re2 {[%clk 0:00:17]}  Rxe2 {[%clk 0:00:04]} 27. Nxe2 {[%clk 0:00:18]}  Rb8 {[%clk 0:00:04]} 28. a4 {[%clk 0:00:16]}  Be4 {[%clk 0:00:05]} 29. Nd4 {[%clk 0:00:15]}  Bxc6 {[%clk 0:00:04]} 30. Nxc6 {[%clk 0:00:16]}  Nd5 {[%clk 0:00:04]} 31. Nxb8 {[%clk 0:00:16]} 1-0


[Site "https://www.chess.com"]

[Event "Titled Tuesday Blitz June 14 Early 2022"]
[White "Tan, Zhongyi"]
[Black "Pranav, V"]
[WhiteFideId "8603642"]
[BlackFideId "25060783"]
[WhiteElo "2510"]
[BlackElo "2349"]
[Result "1-0"]
[Round "01"]
[TimeControl "180+1"]
[Date "2022.06.14"]
[WhiteClock "0:00:15"]
[BlackClock "0:00:42"]

1. e4 {[%clk 0:03:00]}  e5 {[%clk 0:02:58]} 2. Nf3 {[%clk 0:02:59]}  Nf6 {[%clk 0:02:59]} 3. Nxe5 {[%clk 0:02:59]}  Nc6 {[%clk 0:02:57]} 4. Nxc6 {[%clk 0:02:53]}  dxc6 {[%clk 0:02:58]} 5. d3 {[%clk 0:02:48]}  Bc5 {[%clk 0:02:57]} 6. h3 {[%clk 0:02:10]}  h5 {[%clk 0:02:50]} 7. Nc3 {[%clk 0:02:06]}  Be6 {[%clk 0:02:49]} 8. Be3 {[%clk 0:02:04]}  Bxe3 {[%clk 0:02:47]} 9. fxe3 {[%clk 0:02:04]}  Qd6 {[%clk 0:02:46]} 10. Qd2 {[%clk 0:02:03]}  a5 {[%clk 0:02:41]} 11. O-O-O {[%clk 0:02:00]}  a4 {[%clk 0:02:41]} 12. Kb1 {[%clk 0:01:54]}  a3 {[%clk 0:02:41]} 13. b3 {[%clk 0:01:54]}  O-O-O {[%clk 0:02:40]} 14. Be2 {[%clk 0:01:48]}  Kb8 {[%clk 0:02:38]} 15. Bf3 {[%clk 0:01:47]}  h4 {[%clk 0:02:33]} 16. d4 {[%clk 0:01:46]}  Nh5 {[%clk 0:02:33]} 17. e5 {[%clk 0:01:45]}  Qe7 {[%clk 0:02:32]} 18. Ne4 {[%clk 0:01:41]}  Ng3 {[%clk 0:02:30]} 19. Nxg3 {[%clk 0:01:41]}  hxg3 {[%clk 0:02:30]} 20. Qc3 {[%clk 0:01:39]}  f6 {[%clk 0:02:30]} 21. exf6 {[%clk 0:01:36]}  gxf6 {[%clk 0:02:30]} 22. e4 {[%clk 0:01:33]}  Bc8 {[%clk 0:02:24]} 23. Rhe1 {[%clk 0:01:32]}  Rhe8 {[%clk 0:02:20]} 24. h4 {[%clk 0:01:30]}  f5 {[%clk 0:02:17]} 25. exf5 {[%clk 0:01:16]}  Qxh4 {[%clk 0:02:15]} 26. Rxe8 {[%clk 0:01:01]}  Rxe8 {[%clk 0:02:16]} 27. Qa5 {[%clk 0:00:57]}  Qe7 {[%clk 0:01:56]} 28. f6 {[%clk 0:00:56]}  Qxf6 {[%clk 0:01:56]} 29. Qxa3 {[%clk 0:00:56]}  Re3 {[%clk 0:01:57]} 30. Qc5 {[%clk 0:00:52]}  Bf5 {[%clk 0:01:48]} 31. Qc4 {[%clk 0:00:43]}  Bh7 {[%clk 0:01:36]} 32. Rh1 {[%clk 0:00:36]}  Bg6 {[%clk 0:01:25]} 33. Rf1 {[%clk 0:00:29]}  Qd6 {[%clk 0:01:20]} 34. d5 {[%clk 0:00:23]}  Qf6 {[%clk 0:01:11]} 35. dxc6 {[%clk 0:00:20]}  Rc3 {[%clk 0:01:10]} 36. Be4 {[%clk 0:00:16]}  Qg7 {[%clk 0:00:42]} 37. Qb4 {[%clk 0:00:15]} 1-0


[Site "https://www.chess.com"]

[Event "Titled Tuesday Blitz June 14 Early 2022"]
[White "Terry, Renato"]
[Black "Turzo, Attila"]
[WhiteFideId "3803457"]
[BlackFideId "704954"]
[WhiteElo "2577"]
[BlackElo "2524"]
[Result "1-0"]
[Round "01"]
[TimeControl "180+1"]
[Date "2022.06.14"]
[WhiteClock "0:00:10"]
[BlackClock "0:00:07"]

1. d4 {[%clk 0:03:00]}  Nf6 {[%clk 0:02:56]} 2. Nf3 {[%clk 0:03:00]}  e6 {[%clk 0:02:56]} 3. c4 {[%clk 0:03:00]}  d5 {[%clk 0:02:54]} 4. e3 {[%clk 0:03:00]}  c5 {[%clk 0:02:53]} 5. dxc5 {[%clk 0:03:00]}  Bxc5 {[%clk 0:02:52]} 6. a3 {[%clk 0:03:00]}  O-O {[%clk 0:02:40]} 7. b4 {[%clk 0:03:00]}  Be7 {[%clk 0:02:40]} 8. Bb2 {[%clk 0:03:00]}  a5 {[%clk 0:02:39]} 9. b5 {[%clk 0:03:01]}  Nbd7 {[%clk 0:02:35]} 10. Nbd2 {[%clk 0:03:01]}  Nc5 {[%clk 0:02:35]} 11. Be2 {[%clk 0:03:01]}  b6 {[%clk 0:02:30]} 12. cxd5 {[%clk 0:02:59]}  Nxd5 {[%clk 0:02:29]} 13. Ne5 {[%clk 0:02:56]}  Bb7 {[%clk 0:02:27]} 14. O-O {[%clk 0:02:56]}  Rc8 {[%clk 0:02:25]} 15. Rc1 {[%clk 0:02:42]}  Qc7 {[%clk 0:02:13]} 16. Qc2 {[%clk 0:02:17]}  Qb8 {[%clk 0:02:09]} 17. Ndf3 {[%clk 0:02:07]}  Qa8 {[%clk 0:02:08]} 18. Nd4 {[%clk 0:02:00]}  a4 {[%clk 0:01:58]} 19. Nec6 {[%clk 0:01:39]}  Bf6 {[%clk 0:01:55]} 20. e4 {[%clk 0:01:14]}  Nf4 {[%clk 0:01:41]} 21. e5 {[%clk 0:01:13]}  Bxe5 {[%clk 0:01:31]} 22. Nxe5 {[%clk 0:00:58]}  Bxg2 {[%clk 0:01:29]} 23. Nec6 {[%clk 0:00:55]}  Bxf1 {[%clk 0:01:07]} 24. Bxf1 {[%clk 0:00:55]}  Rfe8 {[%clk 0:00:56]} 25. Qc3 {[%clk 0:00:44]}  e5 {[%clk 0:00:43]} 26. Nf5 {[%clk 0:00:37]}  Rc7 {[%clk 0:00:34]} 27. Qg3 {[%clk 0:00:35]}  Ng6 {[%clk 0:00:32]} 28. h4 {[%clk 0:00:29]}  Qc8 {[%clk 0:00:30]} 29. Bh3 {[%clk 0:00:29]}  Ne6 {[%clk 0:00:16]} 30. h5 {[%clk 0:00:28]}  Ngf4 {[%clk 0:00:16]} 31. Qg4 {[%clk 0:00:21]}  Nxh3+ {[%clk 0:00:16]} 32. Qxh3 {[%clk 0:00:21]}  g6 {[%clk 0:00:15]} 33. Nd6 {[%clk 0:00:21]}  Qd7 {[%clk 0:00:15]} 34. Nxe8 {[%clk 0:00:21]}  Qxe8 {[%clk 0:00:15]} 35. Bxe5 {[%clk 0:00:17]}  Rd7 {[%clk 0:00:15]} 36. Qf3 {[%clk 0:00:17]}  Ng5 {[%clk 0:00:14]} 37. Qf6 {[%clk 0:00:17]}  Nf3+ {[%clk 0:00:10]} 38. Qxf3 {[%clk 0:00:16]}  f5 {[%clk 0:00:11]} 39. Re1 {[%clk 0:00:12]}  Qf7 {[%clk 0:00:11]} 40. Bb2 {[%clk 0:00:10]}  gxh5 {[%clk 0:00:07]} 41. Qc3 {[%clk 0:00:10]}  Qg6+ {[%clk 0:00:07]} 42. Kh2 {[%clk 0:00:10]}  Kf7 {[%clk 0:00:07]} 43. Ne5+ {[%clk 0:00:10]} 1-0


[Site "https://www.chess.com"]

[Event "Titled Tuesday Blitz June 14 Early 2022"]
[White "Xiong, Jeffery"]
[Black "Kanyamarala, Tarun"]
[WhiteFideId "2047640"]
[BlackFideId "45004714"]
[WhiteElo "2714"]
[BlackElo "2219"]
[Result "1-0"]
[Round "01"]
[TimeControl "180+1"]
[Date "2022.06.14"]
[WhiteClock "0:01:36"]
[BlackClock "0:01:20"]

1. e4 {[%clk 0:03:00]}  c5 {[%clk 0:02:59]} 2. Nf3 {[%clk 0:03:01]}  Nc6 {[%clk 0:02:58]} 3. Nc3 {[%clk 0:03:00]}  e5 {[%clk 0:02:57]} 4. Bc4 {[%clk 0:03:00]}  Be7 {[%clk 0:02:58]} 5. d3 {[%clk 0:03:00]}  d6 {[%clk 0:02:58]} 6. a4 {[%clk 0:03:00]}  Nf6 {[%clk 0:02:58]} 7. Bg5 {[%clk 0:03:01]}  Nb4 {[%clk 0:02:55]} 8. O-O {[%clk 0:02:37]}  O-O {[%clk 0:02:54]} 9. a5 {[%clk 0:02:34]}  Be6 {[%clk 0:02:49]} 10. Nd2 {[%clk 0:02:32]}  d5 {[%clk 0:02:45]} 11. Bxf6 {[%clk 0:02:30]}  Bxf6 {[%clk 0:02:43]} 12. exd5 {[%clk 0:02:31]}  Nxd5 {[%clk 0:02:43]} 13. Nxd5 {[%clk 0:02:02]}  Bxd5 {[%clk 0:02:42]} 14. Re1 {[%clk 0:02:03]}  Re8 {[%clk 0:02:37]} 15. Ne4 {[%clk 0:02:03]}  Be7 {[%clk 0:02:35]} 16. Qh5 {[%clk 0:01:49]}  Bxc4 {[%clk 0:02:17]} 17. dxc4 {[%clk 0:01:50]}  Qd4 {[%clk 0:02:11]} 18. b3 {[%clk 0:01:50]}  Rad8 {[%clk 0:02:09]} 19. Qf3 {[%clk 0:01:48]}  g6 {[%clk 0:01:59]} 20. Nc3 {[%clk 0:01:42]}  f5 {[%clk 0:01:53]} 21. Rad1 {[%clk 0:01:38]}  Qf4 {[%clk 0:01:28]} 22. Rxd8 {[%clk 0:01:36]}  Rxd8 {[%clk 0:01:21]} 23. Qxf4 {[%clk 0:01:36]}  exf4 {[%clk 0:01:20]} 24. Rxe7 {[%clk 0:01:37]}  Rd2 {[%clk 0:01:20]} 25. Re2 {[%clk 0:01:36]} 1-0


[Site "https://www.chess.com"]

[Event "Titled Tuesday Blitz June 14 Early 2022"]
[White "Yurtseven, Melih"]
[Black "Aravindh, Chithambaram VR."]
[WhiteFideId "6312160"]
[BlackFideId "5072786"]
[WhiteElo "2160"]
[BlackElo "2577"]
[Result "1-0"]
[Round "01"]
[TimeControl "180+1"]
[Date "2022.06.14"]
[WhiteClock "0:00:18"]
[BlackClock "0:00:02"]

1. Nf3 {[%clk 0:03:00]}  Nf6 {[%clk 0:02:48]} 2. g3 {[%clk 0:03:00]}  c6 {[%clk 0:02:28]} 3. Bg2 {[%clk 0:03:00]}  d6 {[%clk 0:02:28]} 4. O-O {[%clk 0:03:01]}  g6 {[%clk 0:02:29]} 5. b3 {[%clk 0:03:01]}  Bg7 {[%clk 0:02:30]} 6. Bb2 {[%clk 0:03:01]}  O-O {[%clk 0:02:31]} 7. c4 {[%clk 0:03:02]}  a5 {[%clk 0:02:23]} 8. a3 {[%clk 0:03:01]}  Na6 {[%clk 0:02:24]} 9. d3 {[%clk 0:03:01]}  e5 {[%clk 0:02:20]} 10. Nbd2 {[%clk 0:03:01]}  h6 {[%clk 0:02:08]} 11. Qc2 {[%clk 0:03:01]}  Re8 {[%clk 0:02:05]} 12. Bc3 {[%clk 0:03:02]}  Nc5 {[%clk 0:02:03]} 13. Qb2 {[%clk 0:03:00]}  Ne6 {[%clk 0:01:48]} 14. b4 {[%clk 0:02:59]}  axb4 {[%clk 0:01:49]} 15. axb4 {[%clk 0:02:59]}  Rxa1 {[%clk 0:01:49]} 16. Rxa1 {[%clk 0:03:00]}  Ng5 {[%clk 0:01:41]} 17. Nxg5 {[%clk 0:02:46]}  hxg5 {[%clk 0:01:42]} 18. Ra8 {[%clk 0:02:45]}  Qe7 {[%clk 0:01:38]} 19. b5 {[%clk 0:02:41]}  Bg4 {[%clk 0:00:59]} 20. Ra7 {[%clk 0:02:23]}  cxb5 {[%clk 0:00:58]} 21. Rxb7 {[%clk 0:02:22]}  Qe6 {[%clk 0:00:56]} 22. Ne4 {[%clk 0:02:18]}  Nxe4 {[%clk 0:00:48]} 23. Bxe4 {[%clk 0:02:19]}  bxc4 {[%clk 0:00:48]} 24. Qb5 {[%clk 0:02:12]}  Rf8 {[%clk 0:00:28]} 25. f3 {[%clk 0:01:55]}  Bf5 {[%clk 0:00:27]} 26. Bd5 {[%clk 0:01:51]}  Qf6 {[%clk 0:00:18]} 27. Qxc4 {[%clk 0:01:46]}  Be6 {[%clk 0:00:15]} 28. Bb4 {[%clk 0:01:43]}  Rc8 {[%clk 0:00:10]} 29. Qe4 {[%clk 0:01:22]}  g4 {[%clk 0:00:04]} 30. Bc4 {[%clk 0:00:58]}  Bxc4 {[%clk 0:00:03]} 31. dxc4 {[%clk 0:00:59]}  gxf3 {[%clk 0:00:03]} 32. exf3 {[%clk 0:01:00]}  Qe6 {[%clk 0:00:02]} 33. Qd5 {[%clk 0:00:48]}  Rxc4 {[%clk 0:00:02]} 34. Qxe6 {[%clk 0:00:48]}  fxe6 {[%clk 0:00:03]} 35. Bxd6 {[%clk 0:00:49]}  e4 {[%clk 0:00:03]} 36. fxe4 {[%clk 0:00:45]}  Rxe4 {[%clk 0:00:04]} 37. Kg2 {[%clk 0:00:43]}  Re2+ {[%clk 0:00:03]} 38. Kh3 {[%clk 0:00:40]}  Rd2 {[%clk 0:00:03]} 39. Bb4 {[%clk 0:00:37]}  Rb2 {[%clk 0:00:03]} 40. Rxg7+ {[%clk 0:00:37]}  Kh8 {[%clk 0:00:03]} 41. Rb7 {[%clk 0:00:37]}  Rc2 {[%clk 0:00:02]} 42. Bd6 {[%clk 0:00:35]}  Kg8 {[%clk 0:00:02]} 43. Be5 {[%clk 0:00:35]}  Rc5 {[%clk 0:00:02]} 44. Bf4 {[%clk 0:00:36]}  Rh5+ {[%clk 0:00:01]} 45. Kg2 {[%clk 0:00:35]}  Rd5 {[%clk 0:00:02]} 46. h4 {[%clk 0:00:35]}  e5 {[%clk 0:00:02]} 47. Bg5 {[%clk 0:00:36]}  e4 {[%clk 0:00:01]} 48. Kf2 {[%clk 0:00:36]}  Rf5+ {[%clk 0:00:01]} 49. Ke3 {[%clk 0:00:35]}  Rf3+ {[%clk 0:00:01]} 50. Kxe4 {[%clk 0:00:36]}  Rxg3 {[%clk 0:00:02]} 51. Ke5 {[%clk 0:00:37]}  Rf3 {[%clk 0:00:02]} 52. Bf4 {[%clk 0:00:37]}  Rf1 {[%clk 0:00:02]} 53. Rb6 {[%clk 0:00:34]}  Kf7 {[%clk 0:00:02]} 54. Rf6+ {[%clk 0:00:34]}  Ke7 {[%clk 0:00:01]} 55. Bg5 {[%clk 0:00:33]}  Re1+ {[%clk 0:00:01]} 56. Kd5 {[%clk 0:00:31]}  Rd1+ {[%clk 0:00:01]} 57. Ke4 {[%clk 0:00:31]}  Re1+ {[%clk 0:00:02]} 58. Kd3 {[%clk 0:00:32]}  Ke8 {[%clk 0:00:02]} 59. Rxg6 {[%clk 0:00:31]}  Kf7 {[%clk 0:00:03]} 60. Rf6+ {[%clk 0:00:32]}  Kg7 {[%clk 0:00:03]} 61. Ra6 {[%clk 0:00:31]}  Rh1 {[%clk 0:00:03]} 62. Ke4 {[%clk 0:00:30]}  Rb1 {[%clk 0:00:03]} 63. Kf5 {[%clk 0:00:31]}  Rb5+ {[%clk 0:00:03]} 64. Kg4 {[%clk 0:00:31]}  Rb1 {[%clk 0:00:02]} 65. Bf4 {[%clk 0:00:30]}  Rb5 {[%clk 0:00:02]} 66. h5 {[%clk 0:00:30]}  Kh7 {[%clk 0:00:02]} 67. Ra7+ {[%clk 0:00:30]}  Kg8 {[%clk 0:00:03]} 68. h6 {[%clk 0:00:29]}  Rd5 {[%clk 0:00:03]} 69. Be3 {[%clk 0:00:27]}  Kh8 {[%clk 0:00:02]} 70. Kf4 {[%clk 0:00:24]}  Rd6 {[%clk 0:00:02]} 71. Kf5 {[%clk 0:00:23]}  Rd5+ {[%clk 0:00:02]} 72. Ke6 {[%clk 0:00:23]}  Rd3 {[%clk 0:00:01]} 73. Bf4 {[%clk 0:00:22]}  Rh3 {[%clk 0:00:01]} 74. Be5+ {[%clk 0:00:20]}  Kg8 {[%clk 0:00:02]} 75. Rg7+ {[%clk 0:00:21]}  Kf8 {[%clk 0:00:02]} 76. h7 {[%clk 0:00:21]}  Rh6+ {[%clk 0:00:02]} 77. Kd5 {[%clk 0:00:21]}  Ke8 {[%clk 0:00:01]} 78. Rg8+ {[%clk 0:00:21]}  Kf7 {[%clk 0:00:02]} 79. h8=Q {[%clk 0:00:22]}  Rd6+ {[%clk 0:00:02]} 80. Ke4 {[%clk 0:00:18]} 1-0


[Site "https://www.chess.com"]

[Event "Titled Tuesday Blitz June 14 Early 2022"]
[White "Zierk, Steven"]
[Black "Eynullayev, Atilla"]
[WhiteFideId "2034255"]
[BlackFideId "13413570"]
[WhiteElo "2494"]
[BlackElo "1936"]
[Result "1-0"]
[Round "01"]
[TimeControl "180+1"]
[Date "2022.06.14"]
[WhiteClock "0:01:00"]
[BlackClock "0:00:06"]

1. b3 {[%clk 0:02:45]}  Nf6 {[%clk 0:02:59]} 2. Bb2 {[%clk 0:02:45]}  e6 {[%clk 0:02:59]} 3. Nf3 {[%clk 0:02:45]}  d5 {[%clk 0:03:00]} 4. e3 {[%clk 0:02:44]}  Be7 {[%clk 0:03:00]} 5. g4 {[%clk 0:02:44]}  c5 {[%clk 0:02:58]} 6. g5 {[%clk 0:02:43]}  Nh5 {[%clk 0:02:58]} 7. Ne5 {[%clk 0:02:43]}  g6 {[%clk 0:02:50]} 8. Nxg6 {[%clk 0:02:42]}  hxg6 {[%clk 0:02:46]} 9. Bxh8 {[%clk 0:02:42]}  Bxg5 {[%clk 0:02:47]} 10. Bb2 {[%clk 0:02:41]}  Bf6 {[%clk 0:02:46]} 11. Bxf6 {[%clk 0:02:39]}  Qxf6 {[%clk 0:02:47]} 12. Nc3 {[%clk 0:02:40]}  Nc6 {[%clk 0:02:45]} 13. Be2 {[%clk 0:02:39]}  Ng7 {[%clk 0:02:46]} 14. Nb5 {[%clk 0:02:37]}  Kd8 {[%clk 0:02:44]} 15. h4 {[%clk 0:02:34]}  a6 {[%clk 0:02:44]} 16. Nd6 {[%clk 0:02:34]}  Kc7 {[%clk 0:02:25]} 17. Nxc8 {[%clk 0:02:32]}  Rxc8 {[%clk 0:02:26]} 18. h5 {[%clk 0:02:32]}  Rh8 {[%clk 0:02:26]} 19. h6 {[%clk 0:02:30]}  Nf5 {[%clk 0:02:27]} 20. h7 {[%clk 0:02:31]}  Qg7 {[%clk 0:02:27]} 21. Bd3 {[%clk 0:02:28]}  Rxh7 {[%clk 0:02:27]} 22. Rxh7 {[%clk 0:02:28]}  Qxh7 {[%clk 0:02:27]} 23. Qf3 {[%clk 0:02:15]}  Ne5 {[%clk 0:02:27]} 24. Qf4 {[%clk 0:02:16]}  Qh1+ {[%clk 0:02:26]} 25. Bf1 {[%clk 0:02:16]}  Kd6 {[%clk 0:02:20]} 26. O-O-O {[%clk 0:02:08]}  Qf3 {[%clk 0:02:09]} 27. Qxf3 {[%clk 0:02:02]}  Nxf3 {[%clk 0:02:10]} 28. Be2 {[%clk 0:02:03]}  N3h4 {[%clk 0:02:07]} 29. Rh1 {[%clk 0:02:01]}  g5 {[%clk 0:02:00]} 30. Bd3 {[%clk 0:02:00]}  Nh6 {[%clk 0:01:27]} 31. f4 {[%clk 0:01:55]}  f6 {[%clk 0:01:27]} 32. Kd1 {[%clk 0:01:51]}  Ke7 {[%clk 0:01:20]} 33. Ke2 {[%clk 0:01:44]}  Nf7 {[%clk 0:01:11]} 34. c4 {[%clk 0:01:40]}  Kd6 {[%clk 0:01:09]} 35. fxg5 {[%clk 0:01:36]}  fxg5 {[%clk 0:01:08]} 36. Rf1 {[%clk 0:01:36]}  Ke7 {[%clk 0:01:08]} 37. cxd5 {[%clk 0:01:35]}  exd5 {[%clk 0:01:09]} 38. Bf5 {[%clk 0:01:35]}  Nd6 {[%clk 0:01:05]} 39. Bg4 {[%clk 0:01:35]}  Ne4 {[%clk 0:01:04]} 40. Rg1 {[%clk 0:01:33]}  Nd6 {[%clk 0:00:58]} 41. Bf3 {[%clk 0:01:30]}  Nxf3 {[%clk 0:00:58]} 42. Kxf3 {[%clk 0:01:31]}  Kf6 {[%clk 0:00:59]} 43. d3 {[%clk 0:01:26]}  b5 {[%clk 0:00:55]} 44. Rh1 {[%clk 0:01:22]}  c4 {[%clk 0:00:44]} 45. Rh6+ {[%clk 0:01:20]}  Ke7 {[%clk 0:00:44]} 46. dxc4 {[%clk 0:01:18]}  dxc4 {[%clk 0:00:41]} 47. bxc4 {[%clk 0:01:18]}  bxc4 {[%clk 0:00:40]} 48. Rg6 {[%clk 0:01:17]}  Nf7 {[%clk 0:00:09]} 49. Ke2 {[%clk 0:01:11]}  c3 {[%clk 0:00:08]} 50. Rxa6 {[%clk 0:01:09]}  Ne5 {[%clk 0:00:08]} 51. Ra8 {[%clk 0:01:03]}  Kd6 {[%clk 0:00:07]} 52. Rc8 {[%clk 0:01:02]}  Nc6 {[%clk 0:00:06]} 53. Kd3 {[%clk 0:01:02]}  g4 {[%clk 0:00:07]} 54. Rg8 {[%clk 0:01:00]}  Ne5+ {[%clk 0:00:06]} 55. Kxc3 {[%clk 0:01:00]} 1-0


[Site "https://www.chess.com"]